Cogmind - Beta 16 @@@ ROGUE MODE // 2026.02.09 @ 18:48:21 Player: N.W.L. Result: Destroyed by G-67 Veteran with Plasma Rifle Performance ------------- Evolutions (4) 2000 Regions Visited (16) 3200 Robots Destroyed (645) 3225 Value Destroyed (16801) 16801 Prototype IDs (70) 1400 Alien Tech Used (0) 0 Bonus (9236) 9236 TOTAL SCORE: 35862 Bonus ------- Triggered High Security 1000 High Alert Combat Kills 7642 Follower Combat Kills 1478 Aligned with FarCom 300 Friendly Fire -1184 Cogmind --------- Core Integrity 0/850 Matter 289/300 Energy 99/100 System Corruption 39% Temperature Cool (37) Movement Core (50) Location -6/Cetus Parts ------- > --- POWER (2) -------- (None) > --- PROPULSION (5) --- (None) > --- UTILITY (5) ------ (None) > --- WEAPON (3) ------- (None) > --- INVENTORY (5) ---- Experimental Sensor Array Advanced Signal Interpreter Medium Regenerative Plating Heavy Plasma Cannon Enhanced Force Lance Peak State ------------ > --- POWER ------------ Light Fission Core Light Fission Core > --- PROPULSION ------- Gravmag System Cooled Aerolev Unit Improved Linear Gravjet Improved Linear Gravjet Improved Linear Gravjet > --- UTILITY ---------- Experimental Heat Sink Large Storage Unit Enhanced Optical Array Matter Filter Advanced Hacking Suite > --- WEAPON ----------- Guided EMP Blaster Lance > --- INVENTORY -------- Improved Linear Gravjet Gravity Neutralizer Experimental Sensor Array IFF Parser Transmission Jammer Layered Light Armor Plating Experimental Focal Shield Trap Extractor Guided Plasma Cannon Long-range Missile Launcher Long-range Missile Launcher Enhanced Force Lance [Rating: 89] Favorites ----------- Power Heavy Ion Engine Engine Heavy Ion Engine Power Core Light Fission Core Reactor Cold Fusion Reactor Propulsion Light Treads Treads Light Treads Leg Flexi-carbon Leg Hover Unit Improved Linear Gravjet Flight Unit Cooled VTOL Module Utility Hacking Suite Device Experimental Heat Sink Storage Humpback Processor Enhanced Optical Array Hackware Hacking Suite Protection Hardened Light Armor Plating Weapon Improved Assault Rifle Energy Gun EM Pulse Gun Energy Cannon Advanced Beam Cannon Ballistic Gun Improved Assault Rifle Ballistic Cannon Light Cannon Launcher Long-range Missile Launcher Special Weapon Welding Torch Impact Weapon Heavy Mace Slashing Weapon Greatsword Piercing Weapon Lance Special Melee Weapon Datajack Build | -11 -10 -10 -9 -9 -9 -8 -8 -7 -7 -7 -7 -6 -6 -6 -6 -6 ------- Run | Yrd Mat Min Mat Min Exi Min Mat Fac Was Fac Sto Fac Was Fac Ext Cet Slots Evolved 8 | . . . 2 . . . 2 2 . . . 2 . . . . Power 1 | . . . . . . . . . . . . 1 . . . . Propulsion 3 | . . . . . . . 1 1 . . . 1 . . . . Utility 3 | . . . 1 . . . 1 1 . . . . . . . . Weapon 1 | . . . 1 . . . . . . . . . . . . . Parts Attached 255 | 7 10 1 48 1 3 5 31 19 8 35 4 22 . 14 44 3 Power 25 | . 3 1 3 . . 1 2 . 1 . . 4 . 2 8 . Engine 19 | . 3 1 3 . . 1 2 . 1 . . 1 . . 7 . Core 5 | . . . . . . . . . . . . 3 . 1 1 . Reactor 1 | . . . . . . . . . . . . . . 1 . . Propulsion 65 | 2 1 . 13 . . 1 8 7 4 10 . 3 . 2 14 . Treads 25 | 2 1 . 13 . . 1 6 . . . . . . . 2 . Leg 11 | . . . . . . . . . . . . . . . 11 . Wheel . | . . . . . . . . . . . . . . . . . Hover 20 | . . . . . . . . . 4 10 . 3 . 2 1 . Flight 9 | . . . . . . . 2 7 . . . . . . . . Utility 98 | 2 4 . 10 1 2 1 13 10 2 18 3 12 . 7 13 . Device 35 | 1 . . 4 1 . . 5 2 1 5 1 6 . 3 6 . Storage 11 | 1 1 . 1 . 2 . 1 1 . 1 . 1 . 1 1 . Processor 10 | . 1 . . . . . . 1 . 3 1 2 . 1 1 . Hackware 21 | . . . 1 . . . 1 6 1 6 1 2 . 1 2 . Protection 21 | . 2 . 4 . . 1 6 . . 3 . 1 . 1 3 . Artifact . | . . . . . . . . . . . . . . . . . Weapon 67 | 3 2 . 22 . 1 2 8 2 1 7 1 3 . 3 9 3 Energy Gun 2 | . . . 2 . . . . . . . . . . . . . Energy Cannon 10 | . . . 7 . . . . 1 . 1 . . . . . 1 Ballistic Gun 16 | 3 . . 7 . . . 4 . . . 1 . . . . 1 Ballistic Cannon 7 | . 2 . 2 . . . . . . 2 . . . . . 1 Launcher 18 | . . . 2 . . 2 3 . . . . 2 . 3 6 . Special Weapon 3 | . . . . . 1 . . . . . . . . . 2 . Impact Weapon 1 | . . . 1 . . . . . . . . . . . . . Slashing Weapon 3 | . . . . . . . 1 . . 2 . . . . . . Piercing Weapon 2 | . . . . . . . . . 1 . . . . . 1 . Special Melee Weapon 5 | . . . 1 . . . . 1 . 2 . 1 . . . . Unidentified Prototypes 24 | . . . 4 1 . . 4 1 1 3 1 4 . 3 1 1 Corrupted Parts 4 | . . . . . . . . . . . . . . . 3 1 System Corruption 19 | . . . . . . . . . . . . . . . 9 10 Parts Lost 41 | . 2 . 1 . . . 4 1 . 5 . 2 . 6 14 6 Power 5 | . 1 . 1 . . . . . . . . . . 1 . 2 Propulsion 18 | . . . . . . . 1 1 . 3 . 1 . 3 7 2 Utility 7 | . 1 . . . . . 2 . . 1 . . . 2 . 1 Weapon 11 | . . . . . . . 1 . . 1 . 1 . . 7 1 Highest Loss Streak 8 | . 1 . 1 . . . 3 1 . 2 . 1 . 4 8 4 To Critical Strikes . | . . . . . . . . . . . . . . . . . Average Backups 21 | 3 10 17 22 25 26 30 33 9 9 12 12 13 13 13 14 18 Power . | 1 . . . . . . 1 . . . . . . . . 2 Propulsion 4 | . . 1 5 7 7 7 8 . 1 . 1 . 1 . 1 2 Utility 9 | . 2 5 8 10 11 12 14 7 6 7 8 9 8 7 6 8 Weapon 6 | 1 6 9 6 6 7 7 7 2 2 3 3 3 4 5 5 4 Tool/Special . | . . . . . . . . . . . . . . . . . Unused Backups 52 | . 2 . 10 . 1 . 12 2 2 6 . 3 . 1 2 11 Power 7 | . 2 . . . . . 1 . . 1 . 1 . . . 2 Propulsion 7 | . . . 1 . . . 2 1 . . . . . . . 3 Utility 29 | . . . 3 . 1 . 9 1 1 3 . 2 . 1 2 6 Weapon 9 | . . . 6 . . . . . 1 2 . . . . . . Tool/Special . | . . . . . . . . . . . . . . . . . Average Slot Usage (%) 91 | . 98 100 99 99 92 85 89 82 82 91 93 90 86 80 85 78 Engine 9 | . 13 14 10 11 11 11 8 7 7 6 7 1 6 . 10 12 Treads 15 | . 27 28 21 22 22 22 26 . . . . . . . . . Leg 4 | . . . . . . . . . . . . . . . 27 25 Hover 6 | . . . . . . . . . 14 29 29 32 33 29 2 . Device 5 | . 1 . 7 . . . 3 6 7 4 9 7 13 10 11 11 Storage 9 | . 14 14 11 11 13 11 8 7 7 7 7 6 6 6 5 5 Processor 1 | . 1 8 . . . . . . . 4 4 1 . 2 5 5 Hackware 4 | . . . 3 . . . 3 22 20 15 12 13 13 7 1 . Protection 8 | . 10 5 11 21 12 8 11 . . 3 3 2 . 2 4 5 Energy Cannon 3 | . . . 14 . . 3 . . . 1 1 1 . . 1 1 Ballistic Gun 11 | . 15 . 13 31 . 21 22 . . . . . . . . . Ballistic Cannon 1 | . 12 28 1 . . . . . . 1 . . . . . 4 Launcher 1 | . . . 1 . . 1 2 . . . . . . 2 3 1 Impact Weapon 1 | . . . . . 10 5 1 . . . . . . . . . Piercing Weapon 1 | . . . . . . . . . 6 4 7 5 6 4 1 . Special Melee Weapon 1 | . . . 1 . 10 . . . . 3 7 3 . . . . Peak Build Rating 89 | 6 9 10 26 35 25 27 43 50 51 70 70 83 79 89 81 78 Average Rating 39 | 4 7 9 22 25 21 25 38 41 45 59 62 75 78 75 62 61 On Entrance 38 | . 6 9 9 24 25 20 27 39 43 43 60 69 78 79 66 61 Avg Prop Armor Cover (%) 20 | . . . . . . . 41 . 8 13 . 5 . . 21 . Naked Turns 40 | . . . . . . . . . . . . . . . 31 9 Heaviest Build 293 | 10 52 52 107 107 293 223 239 23 22 47 45 53 43 50 103 131 Greatest Support 100 | 40 40 40 40 40 40 40 63 28 34 40 40 49 48 53 100 100 Greatest Overweight (x) 75 | . 2 1 3 2 7 5 75 1 2 12 1 1 . 1 17 2 Average Overweight (x) . | . . 1 1 2 3 5 2 . . . . . . . . . Largest Inventory Capacity 35 | 8 20 20 25 25 35 35 35 15 10 15 15 15 15 15 25 25 Average Capacity 23 | 6 17 20 22 25 29 35 33 10 10 13 15 15 15 15 16 20 Most Carried 35 | 5 16 20 25 25 28 35 35 15 10 15 15 15 15 15 25 25 Average Carried 21 | 3 10 17 22 24 26 30 33 9 9 13 14 14 14 14 15 18 Final Capacity 35 | 8 20 20 25 25 35 35 15 10 10 15 15 15 15 15 25 5 Final Carried 35 | 5 16 20 25 25 28 35 15 10 9 15 15 14 15 15 25 5 Class Distribution -------------------- 19% | Mutant 17% | Tank 15% | Hauler-Skirmisher 8% | Hauler-Mutant 6% | Hacker-Sprinter 6% | Hauler-Tank 5% | Scavenger-Mutant 3% | Trapper-Sprinter Dominant Class ---------------- Mutant | -10/Materials Mutant | -10/Mines Tank | -9/Materials Tank | -9/Mines Mutant | -9/Exiles Hauler-Skirmisher | -8/Mines Hauler-Skirmisher | -8/Materials Hacker-Sprinter | -7/Factory Hacker-Mutant | -7/Waste Hacker-Sprinter | -7/Factory Trapper-Sprinter | -7/Storage Trapper-Sprinter | -6/Factory Hacker-Sprinter | -6/Waste Mutant | -6/Factory Scavenger-Mutant | -6/Extension Scavenger-Mutant | -6/Cetus Resources | -11 -10 -10 -9 -9 -9 -8 -8 -7 -7 -7 -7 -6 -6 -6 -6 -6 ----------- Run | Yrd Mat Min Mat Min Exi Min Mat Fac Was Fac Sto Fac Was Fac Ext Cet Matter Collected 13485 | 276 663 163 1772 249 96 261 3203 295 90 1137 127 538 . 1006 3402 207 Remotely 600 | . . . . . . . 57 . . . . . . . 543 . Salvage Created 24096 | 111 842 96 2859 259 . 280 4931 493 107 2322 262 1777 . 2049 7368 340 Parts 1272 | 10 60 9 186 22 . 17 290 30 6 131 23 100 . 104 274 10 Haulers Intercepted 38 | . 2 . 6 . . . 6 4 . 6 1 2 . 3 8 . Recyclers Shooed 14 | . 2 . 1 1 . 1 4 . . 2 1 . . 2 . . Parts Field Recycled . | . . . . . . . . . . . . . . . . . Retrieved Matter . | . . . . . . . . . . . . . . . . . Parts Self-Destructed . | . . . . . . . . . . . . . . . . . Prevented . | . . . . . . . . . . . . . . . . . Parts Restored . | . . . . . . . . . . . . . . . . . Kills | -11 -10 -10 -9 -9 -9 -8 -8 -7 -7 -7 -7 -6 -6 -6 -6 -6 ------- Run | Yrd Mat Min Mat Min Exi Min Mat Fac Was Fac Sto Fac Was Fac Ext Cet Combat Hostiles Destroyed 316 | . 20 1 50 10 . 6 59 1 . 14 3 17 . 24 107 4 Melee 26 | . . . . . . . . . . 13 3 6 . 1 3 . Guns 77 | . 16 . 9 8 . 1 43 . . . . . . . . . Cannons 50 | . 4 1 25 . . . . 1 . 1 . 3 . 3 12 . AOE 152 | . . . 16 2 . 5 16 . . . . 8 . 15 90 . Classes Destroyed 21 | 2 6 . 6 . . . 1 . 1 2 . . . 3 . . Worker 80 | . 2 . 7 2 . 2 25 1 . 10 . 13 . 4 14 . Builder 76 | . . . 8 . . . 33 1 . 5 2 3 . 7 17 . Tunneler 28 | 2 1 2 3 1 . 3 2 . . 2 . 1 . 2 9 . Hauler 38 | . 2 . 6 . . . 6 4 . 6 1 2 . 3 8 . Recycler 71 | 1 2 1 6 1 . 1 15 2 . 13 1 4 . 4 20 . Mechanic 13 | . . . 1 . . . . . . 1 . 2 . . 9 . Operator 14 | . 2 . 3 . . . 1 3 . 3 . 1 . 1 . . Drone 1 | . . . . . . . . . . . . . . 1 . . Turret 2 | . . . . . . . . . . 2 . . . . . . Watcher 24 | . 3 . 5 . . . 5 . . 5 . 3 . 1 1 1 Swarmer 54 | . 12 . 7 8 . 3 3 . . 7 2 12 . . . . Saboteur 5 | . . . . . . . . . . . . . . 3 2 . Grunt 136 | . 8 1 29 2 . 2 37 . . 1 . 1 . 8 47 . Brawler 19 | . . . 2 . . 1 3 . . . . . . . 13 . Duelist 13 | . . . 2 . . . 2 1 . . . . . 1 7 . Protector 8 | . . . 2 . . . 2 . . . . . . . 4 . Sentry 28 | . . . 8 . . . 10 . . 2 . 2 . 3 3 . Demolisher 7 | . . . . . . . . . . . . . . . 7 . Specialist 11 | . . . . . . . . . . . . . . 1 10 . Hunter 11 | . . . . . . . 2 . . . . . . 1 8 . Programmer 19 | . . . . . . . . . . 4 1 2 . 6 6 . Cetus Guard 4 | . . . . . . . . . . . . . . . . 4 Martyr 2 | . . . . . . . . . 2 . . . . . . . Best Kill Streak 25 | 1 4 2 6 6 . 3 8 4 . 5 2 8 . 13 25 5 Combat Bots Only 20 | . 4 1 5 5 . 3 6 1 . 5 2 8 . 7 20 4 Max Kills in Single Turn 10 | 1 1 1 3 1 . 3 3 1 1 1 1 4 . 3 10 1 Gunslinging 1 | . . . . . . . 1 . . . . . . . . . Exploded 9 | . . . 3 1 . 3 3 . . . . 4 . 3 9 . Melee 1 | . . . . . . . . . . 1 1 1 . 1 1 . Uniques/NPCs Destroyed . | . . . . . . . . . . . . . . . . . Combat | -11 -10 -10 -9 -9 -9 -8 -8 -7 -7 -7 -7 -6 -6 -6 -6 -6 -------- Run | Yrd Mat Min Mat Min Exi Min Mat Fac Was Fac Sto Fac Was Fac Ext Cet Hostile Shots Fired 1019 | . 81 2 133 32 . 6 193 16 . 96 65 64 . 84 206 41 Missed 340 | . 20 1 31 5 . 3 46 9 . 31 38 29 . 33 79 15 Hits 679 | . 61 1 102 27 . 3 147 7 . 65 27 35 . 51 127 26 Melee 24 | . . . 11 . . . 8 1 . . . . . . 2 2 Projectile 655 | . 61 1 91 27 . 3 139 6 . 65 27 35 . 51 125 24 AOE 18 | . . . 2 . . . . . . . . . . . 16 . Critical Strikes 32 | . . . 6 1 . . 6 . . 5 . . . . 12 2 Part Disruptions 3 | . . . . . . . . . . . . . . . 3 . Damage Taken 10807 | . 575 33 1512 244 . 42 2545 203 . 1005 304 575 . 612 2498 659 Core 1748 | . 154 . 227 29 . . 183 64 . 218 19 94 . 37 376 347 Absorbed by Shields 355 | . . . . . . . . . . . . . . . 355 . Redirected to Shielding 15 | . 1 . 14 . . . . . . . . . . . . . Regen/Repaired (Parts) 1359 | . 132 . 11 . . . 125 42 46 113 48 96 . 58 648 40 Core Remaining (%) 59 | 100 . 38 . . . 36 66 . . . 57 . . . . . Volleys Fired 867 | 2 85 7 139 17 . 7 277 4 . 39 4 21 . 67 177 21 Largest 3 | 2 2 2 3 3 . 3 3 1 . 1 1 1 . 1 3 1 Hottest 204 | 40 60 60 204 69 . 114 85 120 . 120 90 120 . 120 129 90 Shots Fired 1499 | 4 170 14 304 46 . 15 590 4 . 39 4 21 . 65 204 19 Gun 839 | 4 132 . 94 43 . 10 554 . . . . . . . . 2 Cannon 388 | . 38 14 191 . . 2 . 4 . 39 4 18 . 7 62 9 Launcher 267 | . . . 19 3 . 3 36 . . . . 3 . 58 137 8 Special 5 | . . . . . . . . . . . . . . . 5 . Kinetic 920 | 4 170 14 96 43 . 10 554 . . 27 . . . . . 2 Thermal 308 | . . . 185 . . 2 . 4 . 12 4 18 . 7 67 9 Explosive 183 | . . . 19 3 . 3 36 . . . . 3 . 7 112 . Electromagnetic 88 | . . . 4 . . . . . . . . . . 51 25 8 Robot Hit Streak 31 | 2 9 5 17 9 . 9 31 . . 22 4 2 . 12 23 8 Robot Miss Streak 5 | 1 3 3 5 3 . 1 5 . . 3 . 2 . . 3 . Penetration Max 1 | . . . . . . . 1 . . . . . . . . . Secondary Targets 8 | . . . . 3 . . 5 . . . . . . . . . Max Gunslinging Chain 2 | . . . . 1 . . 2 . . . . . . . . . Shots Hit Robots 1068 | 3 94 8 162 26 5 15 392 27 4 84 17 51 . 35 143 2 Core Hits 1002 | 2 40 5 107 16 . 13 215 10 2 52 6 51 . 62 413 8 Critical Kills . | . . . . . . . . . . . . . . . . . Critical Parts Destroyed 11 | . 1 . 2 . . 1 7 . . . . . . . . . Critical Strikes 40 | . 2 1 2 . . 1 7 2 . 5 2 4 . 3 11 . Destroy 8 | . 1 . 1 . . . 6 . . . . . . . . . Blast 2 | . 1 1 . . . . . . . . . . . . . . Smash 3 | . . . 1 . . 1 1 . . . . . . . . . Sever 3 | . . . . . . . . 2 . 1 . . . . . . Impale 24 | . . . . . . . . . . 4 2 4 . 3 11 . Melee Attacks 536 | . . . 15 . 5 9 27 54 4 167 32 75 . 71 77 . Impact 47 | . . . 11 . . 9 27 . . . . . . . . . Slashing 115 | . . . . . . . . 53 . 62 . . . . . . Piercing 363 | . . . . . . . . . 4 104 32 75 . 71 77 . Sneak Attacks 172 | . . . 4 . 5 4 14 13 4 40 6 27 . 14 41 . Combat Hostiles 2 | . . . . . . . . . . 1 . . . . 1 . Follow-up Attacks 1 | . . . . . . . . . . 1 . . . . . . Damage Inflicted 68612 | 43 1302 204 5381 674 . 880 10564 1698 300 6137 1039 4456 . 5665 29721 548 Guns 8587 | 38 965 . 896 432 . 101 6155 . . . . . . . . . Cannons 6715 | . 291 133 2379 . . 42 . 137 . 590 28 594 . 313 2208 . Explosions 33763 | . . 70 1977 222 . 332 3308 . . 8 . 726 . 3662 22930 528 Melee 19307 | . . . 82 . . 372 1069 1561 300 5539 991 3136 . 1690 4567 . Ramming 233 | 5 46 1 47 20 . 33 32 . . . 20 . . . 9 20 Kinetic 9265 | 38 1256 133 899 432 . 101 6155 . . 251 . . . . . . Thermal 6801 | . . 70 2377 . . 42 . 137 . 339 28 594 . 776 2438 . Explosive 29233 | . . . 1937 222 . 332 3074 . . . . 726 . 1913 21029 . Electromagnetic 3773 | . . . 39 . . . 234 . . 8 . . . 1286 1678 528 Impact 1523 | . . . 82 . . 372 1069 . . . . . . . . . Slashing 4338 | . . . . . . . . 1561 . 2777 . . . . . . Piercing 13446 | . . . . . . . . . 300 2762 991 3136 . 1690 4567 . Highest Corruption 39 | . . . 1 1 1 1 . . . 5 5 1 7 15 29 39 Average Corruption 6 | . . . 1 1 1 1 . . . 1 5 1 5 8 19 30 Corruption Purged 1 | . . . . . . . . . . . . 1 . . . . Corruption Blocked . | . . . . . . . . . . . . . . . . . Effects 497 | . . . 58 14 4 29 . . . 26 13 3 1 53 282 14 Message Errors 145 | . . . 13 8 2 8 . . . 7 4 2 . 17 82 2 Matter Fused 120 | . . . 16 2 . 12 . . . 5 2 . . 11 67 5 Heat Flow Errors 47 | . . . 2 . 1 . . . . 4 2 . . 8 29 1 Energy Discharges 53 | . . . 10 1 . 4 . . . 5 . 1 . 3 27 2 Parts Rejected 1 | . . . . . . . . . . . . . . . 1 . Parts Fused 9 | . . . . . . . . . . 1 . . . 2 5 1 Data Loss (minor) 60 | . . . 11 1 . 2 . . . 1 5 . . 7 32 1 Data Loss (major) 17 | . . . 1 1 1 . . . . . . . . 1 13 . Misfires 11 | . . . 2 1 . 2 . . . 1 . . . . 5 . Alerts 17 | . . . 3 . . 1 . . . 1 . . 1 1 10 . Misdirections 3 | . . . . . . . . . . . . . . 1 2 . Weapon Failures 14 | . . . . . . . . . . 1 . . . 2 9 2 Overload Shots 1 | . . . . . . . . . . . 1 . . . . . Overflow Damage 5972 | . 19 33 163 . . 234 757 267 99 1146 243 421 . 803 1770 17 Projectiles 143 | . 19 . 39 . . . . . . 36 . 7 . . 42 . Explosions 950 | . . 33 68 . . . 154 . . . . 13 . 197 468 17 Melee 4879 | . . . 56 . . 234 603 267 99 1110 243 401 . 606 1260 . Knockbacks 11 | . 2 3 3 . . 2 1 . . . . . . . . . Impact 6 | . . . 3 . . 2 1 . . . . . . . . . Kinetic 5 | . 2 3 . . . . . . . . . . . . . . Secondary . | . . . . . . . . . . . . . . . . . Self-Inflicted Damage 483 | . . 16 36 . . . 156 . . 19 10 . . 1 211 34 Shots 19 | . . 1 2 . . . 6 . . 1 . . . 1 5 3 Rammed 34 | 2 6 1 8 2 . 5 1 . . . 2 . . . 4 3 Targets Rammed 38 | 3 6 1 8 2 . 5 3 . . . 2 . . . 5 3 Kicked 1 | . . . . . . . . . . . . . . . 1 . Crushed 3 | 1 . . . . . . 2 . . . . . . . . . Highest Temperature 455 | . 2 12 423 207 254 96 326 136 . 273 385 327 . 256 455 49 Average Temperature 72 | . 1 10 102 76 129 42 52 58 . 45 57 71 . 72 107 28 Received Heat Transfer 2422 | . 90 9 411 51 . 27 1044 12 . 135 60 36 . 72 273 202 Effects 14 | . . . 5 . . . . . . 3 . 3 . . 3 . Shutdowns 2 | . . . . . . . . . . . . . . . 2 . Energy Bleed 3 | . . . 2 . . . . . . 1 . . . . . . Interference 7 | . . . 3 . . . . . . 2 . 2 . . . . Short Circuit 2 | . . . . . . . . . . . . 1 . . 1 . Siege Activations . | . . . . . . . . . . . . . . . . . Martial Activations . | . . . . . . . . . . . . . . . . . Shielding Activations . | . . . . . . . . . . . . . . . . . Robots Disrupted 1 | . . . . . . . . . . . . . . 1 . . Combat Hostiles 1 | . . . . . . . . . . . . . . 1 . . Robots Corrupted 20 | . . . . . . 1 7 . . . . . . 6 2 4 Combat Hostiles 11 | . . . . . . . . . . . . . . 5 2 4 Parts Fried 40 | . . . . . . 6 19 . . . . . . 5 6 4 Impact Corruptions 28 | . . . 1 . . 6 21 . . . . . . . . . Robots Melted . | . . . . . . . . . . . . . . . . . Combat Hostiles . | . . . . . . . . . . . . . . . . . Parts Melted 13 | . . . 5 . . . . 3 . . . . . 3 2 . Heat Transferred 12875 | . . 100 4120 . . 74 . 320 . 720 37 1274 . 1110 5120 . Parts Sabotaged 5 | . . . . . . . . . . . . . . . 5 . Parts Stolen . | . . . . . . . . . . . . . . . . . Parts Stripped . | . . . . . . . . . . . . . . . . . Power Chain Reactions 8 | . . . 1 . . . 1 . . 1 . . . 2 3 . Alert | -11 -10 -10 -9 -9 -9 -8 -8 -7 -7 -7 -7 -6 -6 -6 -6 -6 ------- Run | Yrd Mat Min Mat Min Exi Min Mat Fac Was Fac Sto Fac Was Fac Ext Cet Maximum Alert Level 5 | . 1 . 4 2 . . 5 3 1 2 1 2 . 4 5 5 Low Security (%) 37 | 100 93 100 31 9 . 100 23 . 31 62 70 19 100 42 . . Level 1 18 | . 6 . 20 68 . . 19 . 68 32 29 60 . 7 . . Level 2 14 | . . . 15 22 . . 19 1 . 4 . 20 . 21 28 . Level 3 12 | . . . 25 . . . 6 98 . . . . . 7 24 . Level 4 9 | . . . 6 . . . 23 . . . . . . 22 10 . Level 5 2 | . . . . . . . 7 . . . . . . . 6 37 High Security 4 | . . . . . . . . . . . . . . . 29 62 Max Security . | . . . . . . . . . . . . . . . . . Sterilizations 3 | . . . 1 . . . 1 . . . . . . . 1 . Peak Influence 3919 | 5 253 52 1225 565 . 91 1805 872 332 444 320 479 163 1184 3919 2266 Initial 2194 | . . 52 . 477 . . 33 821 302 . 200 145 163 100 576 2194 Average 604 | . 117 10 472 300 . 6 665 774 231 154 194 292 154 498 1731 2209 Influence Increases 15015 | 15 739 85 1808 367 . 237 2452 405 45 1267 300 824 . 1688 4651 132 Destroy 0b10 Robot/C 7120 | . 400 20 960 260 . 140 1140 60 . 460 60 340 . 460 2740 80 Destroy 0b10 Robot/NC 1785 | 15 60 15 205 20 . 30 445 50 . 220 20 145 . 110 445 5 Destroy Leader 1436 | . 90 10 262 40 . 30 312 18 . 130 22 80 . 118 324 . Allied During Kill 831 | . . . . 14 . 7 . . . 2 . . . . 808 . Trap Triggered on 0b10 230 | . . . 60 . . . . 10 . 90 . 70 . . . . Successful Hack 543 | . 51 . 30 . . . 35 98 . 91 40 45 . 121 32 . Select Force Hacks 150 | . 60 . 60 . . . 30 . . . . . . . . . Disable Machine 630 | . 15 15 60 15 . . 150 15 . 45 30 15 . 240 . 30 Destroy Structure 970 | . 3 10 111 18 . 30 325 19 15 64 8 39 . 174 152 2 Partial Spotted 180 | . . . . . . . . 15 30 60 30 30 . 15 . . Lose Combat Pursuer 1140 | . 60 15 60 . . . 15 120 . 105 90 60 . 450 150 15 Influence Decreases 12789 | 15 605 219 583 1380 212 151 733 1346 909 826 421 677 324 653 1910 1825 Entered New Map 5731 | . . 82 . 748 212 . 53 984 562 . 241 175 304 43 602 1725 Time Decay 5796 | 15 585 137 573 632 . 151 640 342 90 591 180 482 20 550 768 40 Lost Part 410 | . 20 . 10 . . . 40 10 . 50 . 20 . 60 140 60 Lost Ally 767 | . . . . . . . . 10 257 100 . . . . 400 . Purge Threat 85 | . . . . . . . . . . 85 . . . . . . Squads Dispatched 124 | . 4 . 11 . . . 16 13 . 19 3 10 . 15 29 4 Investigation 32 | . 3 . 5 . . . 2 4 . 9 . 6 . 3 . . Extermination 20 | . . . . . . . . 2 . 9 1 3 . 5 . . Reinforcement 33 | . 1 . 3 . . . 8 3 . 1 2 1 . 5 9 . Assault 32 | . . . 3 . . . 3 1 . . . . . 1 20 4 Garrison 7 | . . . . . . . 3 3 . . . . . 1 . . Intercept . | . . . . . . . . . . . . . . . . . Searches Triggered . | . . . . . . . . . . . . . . . . . Unchained Authorized 3 | . . . . . . . . . . 1 . 1 . 1 . . Construction Impeded 20 | . . . 1 . . . 7 . . . . 1 . 2 9 . Haulers Reinforced 3 | . . . . . . . . 1 . 1 1 . . . . . Active Scanning Responses . | . . . . . . . . . . . . . . . . . Cargo Convoy Interrupts 2 | . . . . . . . . . . . . 1 . 1 . . Stealth | -11 -10 -10 -9 -9 -9 -8 -8 -7 -7 -7 -7 -6 -6 -6 -6 -6 --------- Run | Yrd Mat Min Mat Min Exi Min Mat Fac Was Fac Sto Fac Was Fac Ext Cet Distress Signals 24 | . 3 . 4 . . . 4 1 . 3 1 1 . 2 5 . Communications Jammed 11 | . . . . . . . . . . 6 . 4 . 1 . . Distress Signals 11 | . . . . . . . . . . 6 . 4 . 1 . . Times Spotted 584 | . 39 2 72 13 . 4 76 17 11 59 25 31 6 50 157 22 Peak Tracking Total 17 | . 6 2 5 4 . 3 5 6 6 16 15 5 6 10 17 13 Tactical Retreats 53 | . 2 1 3 . . . 1 3 1 12 2 2 . 15 10 1 Traps | -11 -10 -10 -9 -9 -9 -8 -8 -7 -7 -7 -7 -6 -6 -6 -6 -6 ------- Run | Yrd Mat Min Mat Min Exi Min Mat Fac Was Fac Sto Fac Was Fac Ext Cet Traps Triggered 20 | . 2 . 2 . . . . 6 . 1 2 4 . 1 2 . Indirectly 1 | . . . . . . . . . . . . . . 1 . . Trap Hack Attempts 226 | . . . 116 . . . 24 . . 86 . . . . . . Triggered . | . . . . . . . . . . . . . . . . . Disarmed . | . . . . . . . . . . . . . . . . . Reprogrammed 44 | . . . 15 . . . 4 6 . 19 . . . . . . Reused 23 | . . . 6 . . . . 1 . 9 . 7 . . . . Traps Extracted 19 | . . . 6 . . . . . . 13 . . . . . . Installed 13 | . . . . . . . . . . 6 . 7 . . . . Triggered 23 | . . . 6 . . . . 1 . 9 . 7 . . . . Most Traps Carried 11 | . . . 6 4 4 4 4 4 4 11 11 11 4 4 4 . Machines | -11 -10 -10 -9 -9 -9 -8 -8 -7 -7 -7 -7 -6 -6 -6 -6 -6 ---------- Run | Yrd Mat Min Mat Min Exi Min Mat Fac Was Fac Sto Fac Was Fac Ext Cet Machines Disabled 45 | . 2 1 4 1 . . 12 1 . 3 2 1 . 16 . 2 Max in Single Turn 7 | . 1 1 1 1 . . 2 . . 2 1 1 . 7 . 1 Garrison Access 8 | . . . . . . . 1 2 . 2 . 1 . 2 . . Energy Cycler 1 | . . . . . . . . . . . . . . . 1 . Machines Repaired . | . . . . . . . . . . . . . . . . . Machines Dismantled . | . . . . . . . . . . . . . . . . . Machines Sabotaged . | . . . . . . . . . . . . . . . . . Overloaded Fab Kills . | . . . . . . . . . . . . . . . . . Hacking | -11 -10 -10 -9 -9 -9 -8 -8 -7 -7 -7 -7 -6 -6 -6 -6 -6 --------- Run | Yrd Mat Min Mat Min Exi Min Mat Fac Was Fac Sto Fac Was Fac Ext Cet Machines Accessed 155 | . 9 . 11 1 2 . 14 21 . 34 7 21 . 25 10 . Terminals 86 | . 6 . 6 . . . 9 11 . 18 5 7 . 14 10 . Fabricators 13 | . . . . . . . . 1 . 6 . 4 . 2 . . Repair Stations 18 | . 1 . 1 . . . 1 3 . 4 1 4 . 3 . . Recycling Units 15 | . 2 . 2 . . . 2 2 . 1 1 3 . 2 . . Scanalyzers 13 | . . . 2 . . . 2 2 . 3 . 2 . 2 . . Garrison Access 7 | . . . . . . . . 2 . 2 . 1 . 2 . . Total Hacks 499 | . 32 . 36 1 5 . 56 63 . 120 14 57 . 87 28 . Successful 310 | . 19 . 25 1 5 . 37 40 . 88 12 30 . 44 9 . Failed 184 | . 13 . 10 . . . 18 22 . 31 2 27 . 42 19 . Catastrophic 19 | . 1 . 1 . . . 2 4 . 4 . . . 5 2 . Database Lockouts 5 | . . . 1 . . . 1 1 . 1 . . . 1 . . Manual 257 | . 14 . 21 . 1 . 36 32 . 64 7 23 . 37 22 . Terminals 298 | . 19 . 25 . . . 38 36 . 76 9 20 . 47 28 . Fabricators 46 | . . . . . . . . 4 . 19 . 13 . 10 . . Repair Stations 46 | . 7 . 2 . . . 2 8 . 9 2 10 . 6 . . Recycling Units 44 | . 6 . 4 . . . 4 7 . 3 3 7 . 10 . . Scanalyzers 47 | . . . 5 . . . 12 5 . 9 . 6 . 10 . . Garrison Access 12 | . . . . . . . . 3 . 4 . 1 . 4 . . Terminal Hacks 84 | . 3 . 7 1 5 . 10 10 . 27 3 1 . 12 5 . Record 4 | . . . . . 4 . . . . . . . . . . . Part Schematic 4 | . . . . . . . . 1 . 2 . . . . 1 . Robot Schematic 1 | . . . . . . . . 1 . . . . . . . . Robot Analysis 17 | . 3 . 1 . . . 4 1 . 4 . . . 3 1 . Prototype ID Bank 6 | . . . . . . . . . . 4 . . . 1 1 . Open Door 6 | . . . . 1 . . . . . . 3 . . 1 1 . Branch Access Points 5 | . . . 1 . . . 1 1 . 1 . . . 1 . . Machine Index 2 | . . . . . . . . 1 . 1 . . . . . . Terminal Index 3 | . . . . . . . 1 . . 1 . . . 1 . . Alert Level 6 | . . . 1 . . . 1 . . 2 . . . 1 1 . Unreport Threat 1 | . . . . . . . . . . 1 . . . . . . Locate Traps 6 | . . . 1 . . . 1 1 . 1 . . . 2 . . Reprogram Traps 3 | . . . 1 . . . . 1 . 1 . . . . . . Maintenance Status 2 | . . . . . . . . . . 1 . . . 1 . . Patrol Status 2 | . . . 1 . . . . . . 1 . . . . . . Recall Investigation 1 | . . . . . . . . . . 1 . . . . . . Recall Extermination 1 | . . . . . . . . 1 . . . . . . . . Recall Assault 1 | . . . . . . . . 1 . . . . . . . . Hauler Manifests 6 | . . . . . . . 1 1 . 3 . 1 . . . . Zone Layout 6 | . . . 1 . . . 1 . . 3 . . . 1 . . Proto ID Catalog 1 | . . . . . 1 . . . . . . . . . . . Fabricator Hacks 25 | . . . . . . . . 2 . 12 . 7 . 4 . . Network Status 4 | . . . . . . . . 1 . 1 . 1 . 1 . . Load Schematic 13 | . . . . . . . . 1 . 6 . 4 . 2 . . Build 8 | . . . . . . . . . . 5 . 2 . 1 . . Repair Station Hacks 32 | . 6 . 2 . . . 2 5 . 7 2 6 . 2 . . Scan Component 19 | . 3 . 1 . . . 1 4 . 4 1 4 . 1 . . Repair 13 | . 3 . 1 . . . 1 1 . 3 1 2 . 1 . . Recycling Unit Hacks 14 | . 2 . 2 . . . 1 2 . 1 1 2 . 3 . . Retrieve Matter 3 | . 1 . . . . . . . . . . . . 2 . . Retrieve Components 11 | . 1 . 2 . . . 1 2 . 1 1 2 . 1 . . Scanalyzer 31 | . . . 2 . . . 12 3 . 7 . 3 . 4 . . Insert Component 13 | . . . 1 . . . 6 1 . 3 . 1 . 1 . . Analyze 14 | . . . 1 . . . 6 1 . 4 . 1 . 1 . . Retrieve Study 4 | . . . . . . . . 1 . . . 1 . 2 . . Garrison Access Hacks 7 | . . . . . . . . 2 . 2 . 1 . 2 . . Seal Access 7 | . . . . . . . . 2 . 2 . 1 . 2 . . Unauthorized Hacks 117 | . 8 . 12 . . . 12 16 . 32 6 10 . 17 4 . Terminals 82 | . 6 . 10 . . . 9 10 . 24 4 4 . 11 4 . Track 7 | . . . 1 . . . 1 . . 3 . . . 2 . . Assimilate 10 | . . . . . . . . 2 . 7 . . . 1 . . Botnet 16 | . 1 . 3 . . . 2 2 . 2 2 1 . 1 2 . Operators 2 | . . . . . . . 1 . . . . . . 1 . . Skim 46 | . 5 . 5 . . . 5 6 . 12 2 3 . 6 2 . Search 1 | . . . 1 . . . . . . . . . . . . . Fabricators 12 | . . . . . . . . 2 . 5 . 4 . 1 . . Report 2 | . . . . . . . . . . 1 . 1 . . . . Prioritize 3 | . . . . . . . . . . 1 . 1 . 1 . . Liberate 1 | . . . . . . . . 1 . . . . . . . . Haulers 2 | . . . . . . . . . . 1 . 1 . . . . Recompile 4 | . . . . . . . . 1 . 2 . 1 . . . . Repair Stations 1 | . . . . . . . . . . 1 . . . . . . Patch 1 | . . . . . . . . . . 1 . . . . . . Recycling Units 22 | . 2 . 2 . . . 3 4 . 2 2 2 . 5 . . Monitor 1 | . . . . . . . . . . . . . . 1 . . Reject 5 | . . . . . . . 1 1 . 1 1 . . 1 . . Recyclers 2 | . . . . . . . . 1 . . . . . 1 . . Mask 9 | . . . . . . . 1 2 . 1 1 2 . 2 . . Tunnel 5 | . 2 . 2 . . . 1 . . . . . . . . . Scanalyzers . | . . . . . . . . . . . . . . . . . Garrison Access . | . . . . . . . . . . . . . . . . . Data Cores Recovered 4 | . . . 1 . . . . . . 2 . . . . 1 . Used 2 | . . . . . . . . . . 1 . . . . 1 . Hacking Detections 127 | . 8 . 8 . . . 13 16 . 28 4 19 . 22 9 . Full Trace Events 19 | . 1 . 1 . . . 2 2 . 5 . 5 . 3 . . Feedback Events 3 | . . . . . . . . . . 1 . 1 . 1 . . Corruption 2 | . . . . . . . . . . 1 . 1 . . . . Hackware Fried 1 | . . . . . . . . . . . . . . 1 . . Feedback Blocked . | . . . . . . . . . . . . . . . . . Robot Schematics Acquired 1 | . . . . . . . . 1 . . . . . . . . Robots Built 3 | . . . . . . . . . . 3 . . . . . . Authchips . | . . . . . . . . . . . . . . . . . Time 134 | . . . . . . . . . . 134 . . . . . . Total Robot Build Rating 12 | . . . . . . . . . . 12 . . . . . . Part Schematics Acquired 16 | . . . 1 . . . 6 2 . 4 . 1 . 1 1 . Parts Built 11 | . . . . . . . . . . 8 . 2 . 1 . . Authchips 4 | . . . . . . . . . . 3 . 1 . . . . Time 305 | . . . . . . . . . . 194 . 75 . 36 . . Total Part Build Rating 73 | . . . . . . . . . . 56 . 14 . 3 . . Part Studies Acquired 4 | . . . . . . . . 1 . . . 1 . 2 . . Parts Repaired 13 | . 3 . 1 . . . 1 1 . 3 1 2 . 1 . . Time 573 | . 78 . 136 . . . 26 88 . 84 31 87 . 43 . . Parts Recycled . | . . . . . . . . . . . . . . . . . Recycled Matter . | . . . . . . . . . . . . . . . . . Retrieved Matter 225 | . 225 . . . . . . . . . . . . . . . Retrieved Components 47 | . 10 . 20 . . . 6 5 . . 2 3 . 1 . . Parts Scanalyzed 12 | . . . 1 . . . 6 1 . 2 . 1 . 1 . . Part Schematics Acquired 12 | . . . 1 . . . 6 1 . 2 . 1 . 1 . . Parts Damaged 1 | . . . 1 . . . . . . . . . . . . . Bothacking | -11 -10 -10 -9 -9 -9 -8 -8 -7 -7 -7 -7 -6 -6 -6 -6 -6 ------------ Run | Yrd Mat Min Mat Min Exi Min Mat Fac Was Fac Sto Fac Was Fac Ext Cet Used RIF Installer . | . . . . . . . . . . . . . . . . . Robots Hacked 9 | . . . 2 . 5 . . 1 . 1 . . . . . . Non-combat 7 | . . . 2 . 3 . . 1 . 1 . . . . . . Combat 2 | . . . . . 2 . . . . . . . . . . . Robot Hacks Applied 9 | . . . 2 . 5 . . 1 . 1 . . . . . . parse_system 8 | . . . 2 . 5 . . . . 1 . . . . . . find_chute 1 | . . . . . . . . 1 . . . . . . . . Relay Couplers Released 2 | . . . . . . . 2 . . . . . . . . . Machine Destruction 2 | . . . . . . . 2 . . . . . . . . . Fabnet Peak Effective % . | . . . . . . . . . . . . . . . . . Robots Rewired 17 | . . . . . . . . . . . . . . . 17 . Allies Hacked 2 | . . . . . . . . 1 . 1 . . . . . . Hacks Repelled . | . . . . . . . . . . . . . . . . . Allies | -11 -10 -10 -9 -9 -9 -8 -8 -7 -7 -7 -7 -6 -6 -6 -6 -6 -------- Run | Yrd Mat Min Mat Min Exi Min Mat Fac Was Fac Sto Fac Was Fac Ext Cet Total Allies 55 | . . . . 3 . . . 4 18 8 . . . 1 21 . Largest Group 18 | . . . . 3 3 3 1 2 18 3 . . . . 10 . Highest-Rated Group 444 | . . . . 40 40 40 8 64 438 90 . . . . 444 . Highest-Rated Ally 159 | . . . . 16 16 16 8 32 35 30 . . . . 159 . Total Orders 25 | . . . . 3 . . . . . 11 . . . . 11 . STAY 15 | . . . . 1 . . . . . 6 . . . . 8 . FOLLOW 9 | . . . . 1 . . . . . 5 . . . . 3 . EXPLORE 1 | . . . . 1 . . . . . . . . . . . . Ally Attacks 492 | . . . . 11 . 6 1 7 222 27 . . . . 218 . Total Damage 9057 | . . . . 52 . 32 10 315 3648 669 . . . . 4331 . Kills 64 | . . . . 3 . 1 . 3 6 9 . . . . 42 . Allies Corrupted . | . . . . . . . . . . . . . . . . . Allies Melted . | . . . . . . . . . . . . . . . . . Intel | -11 -10 -10 -9 -9 -9 -8 -8 -7 -7 -7 -7 -6 -6 -6 -6 -6 ------- Run | Yrd Mat Min Mat Min Exi Min Mat Fac Was Fac Sto Fac Was Fac Ext Cet Active Infowar (turns) 16931 | 155 660 336 3957 . . . 2130 20 16 1313 3 409 52 1496 6149 235 Optics 8003 | . 302 336 . . . . . . . 178 . . . 803 6149 235 Sensors 861 | . . . . . . . . . . 861 . . . . . . IFF 26 | . . . . . . . . . . . . 26 . . . . Terrain 1 | . . . . . . . . . . . . 1 . . . . Structural 186 | . . . . . . . . . . . . . . 186 . . Seismic 6600 | 155 358 . 3957 . . . 2130 . . . . . . . . . T.N.C. 267 | . . . . . . . . 2 . 85 . 180 . . . . Machine Analysis 67 | . . . . . . . . . . . . 67 . . . . Jamming 1271 | . . . . . . . . 18 16 189 3 137 52 693 163 . Robot Analysis Total 17 | . 3 . 1 . . . 4 1 . 4 . . . 3 1 . Derelict Logs Recovered 5 | . . 3 . 2 . . . . . . . . . . . . Drone Launches 1 | . . . . 1 . . . . . . . . . . . . Drone Recoveries . | . . . . . . . . . . . . . . . . . Exploration | -11 -10 -10 -9 -9 -9 -8 -8 -7 -7 -7 -7 -6 -6 -6 -6 -6 ------------- Run | Yrd Mat Min Mat Min Exi Min Mat Fac Was Fac Sto Fac Was Fac Ext Cet Turns Passed 41670 | 222 2732 580 7356 2219 1344 3193 9072 761 189 4273 378 1245 52 1597 6213 244 Spaces Moved 22013 | 125 980 210 2052 658 324 552 1688 1829 356 4824 485 1975 155 2865 2840 95 Core 536 | 2 . . . . . . 57 . . 5 . . . . 464 8 Treads 6530 | 123 980 210 2052 658 324 552 1631 . . . . . . . . . Legs 2009 | . . . . . . . . . . . . . . . 1922 87 Wheels . | . . . . . . . . . . . . . . . . . Hover 10913 | . . . . . . . . . 160 4819 485 1975 155 2865 454 . Flight 2025 | . . . . . . . . 1829 196 . . . . . . . Fastest Speed 17 | 50 160 240 240 320 320 560 50 17 27 28 28 26 30 30 40 50 Average Speed 133 | 158 217 240 279 320 408 560 371 27 35 45 28 30 30 37 112 148 Slowest Speed 3800 | 160 320 240 400 320 720 560 3800 96 200 650 108 108 30 105 900 260 Overloaded Moves 93 | . . . . . . . . 7 . . . . . 86 . . Propulsion Burnouts . | . . . . . . . . . . . . . . . . . Robots Hopped 9 | . . . . . . . . 9 . . . . . . . . Potential Cave-ins 15 | . . . . . . . . . . 2 . . . 6 . 7 Cave-ins Triggered . | . . . . . . . . . . . . . . . . . Exploration Rate (%) 72 | 7 97 49 95 98 71 101 98 58 96 70 66 43 70 61 98 54 Regions Visited 16 Branch Regions 7 Pre-discovered Areas 15 | . 2 2 4 1 1 . 3 . . 1 . . . 1 . . Known Exits Taken 8 | . . 1 1 . . 1 1 . . 1 1 . . 1 1 . Unknown Exits Taken 4 | 1 1 . . 1 1 . . . . . . . . . . . Scrap Searched 5 | . . 1 . 2 . 2 . . . . . . . . . . Spaces Dug 278 | . . . 24 . . 3 101 19 . 57 8 18 . 39 9 . Terrain Destroyed 1607 | . . 10 114 37 . 34 334 19 . 66 8 45 . 193 738 9 Melee 162 | . . . 1 . . 3 12 19 . 55 7 18 . 39 8 . Projectile 29 | . . . 2 . . . 6 . . 8 1 . . . 3 9 AOE 1416 | . . 10 111 37 . 31 316 . . 3 . 27 . 154 727 . Terrain Rammed . | . . . . . . . . . . . . . . . . . Walls Destroyed . | . . . . . . . . . . . . . . . . . Machines Disabled . | . . . . . . . . . . . . . . . . . Actions | -11 -10 -10 -9 -9 -9 -8 -8 -7 -7 -7 -7 -6 -6 -6 -6 -6 --------- Run | Yrd Mat Min Mat Min Exi Min Mat Fac Was Fac Sto Fac Was Fac Ext Cet Total 32000 | 141 1411 272 3376 734 347 603 3946 2000 414 6586 668 2473 159 3221 5466 183 Wait 6957 | . 296 45 833 40 . 11 1772 58 31 1309 133 312 4 155 1931 27 Move 21983 | 124 979 210 2051 657 323 551 1687 1812 355 4823 484 1975 154 2864 2839 95 Hop 8 | . . . . . . . . 8 . . . . . . . . Pick Up 229 | 4 21 6 38 1 4 6 43 9 3 29 2 11 1 7 33 11 Fast Attach 110 | 7 2 . 8 7 2 1 9 8 6 12 3 10 . 5 28 2 Attach 113 | . 7 . 6 . 1 1 12 13 1 19 2 4 . 14 28 5 Detach 81 | 1 3 . 5 . 2 1 2 9 1 13 1 5 . 13 21 4 Swap 346 | . 4 2 90 2 5 11 45 9 2 62 5 35 . 17 55 2 Drop 238 | . 8 2 57 8 5 . 45 16 11 25 . 18 . 8 22 13 Fire 867 | 2 85 7 139 17 . 7 277 4 . 39 4 21 . 67 177 21 Melee 532 | . . . 15 . 5 9 27 54 4 163 32 75 . 71 77 . Ram 9 | . . . . . . . . . . . 2 . . . 4 3 Kick 1 | . . . . . . . . . . . . . . . 1 . Crush 27 | 3 6 . 8 2 . 5 3 . . . . . . . . . Escape Stasis 13 | . . . . . . . . . . . . . . . 13 . Rewire 247 | . . . 10 . . . . . . . . . . . 237 . Trap 239 | . . . 116 . . . 24 . . 92 . 7 . . . . Miscellaneous . | . . . . . . . . . . . . . . . . . Route ------- -11/Scrapyard -10/Materials (discovered 5 exits: *Mat x3 / [*Min] / Sub) -10/Mines (discovered 3 exits: *Mat x2 / *Sub) -9/Materials (discovered 4 exits: *Mat x3 / *Min) -9/Mines (discovered 3 exits: *Mat x2 / *Exi) -9/Exiles -8/Mines (discovered 2 exits: *Mat x2) -8/Materials (discovered 3 exits: *Fac x3) -7/Factory (discovered 7 exits: *Fac x3 / *Sto x2 / Low x2) -7/Waste -7/Factory (discovered 7 exits: *Fac x4 / *Sto / *Low x2) -7/Storage -6/Factory (discovered 4 exits: *Fac / *Low x2 / Ext) -6/Waste -6/Factory (discovered 8 exits: *Fac x4 / Low x2 / *Ext x2) -6/Extension (discovered 3 exits: *Fac x2 / *Cet) -6/Cetus History --------- Turn | Location | Event 13 | -11/Scrapyard | Discovered new exit (range 15) 223 | -11/Scrapyard | Entered Materials 300 | -10/Materials | Build established: Mutant 574 | -10/Materials | Discovered new exit (range 13) 748 | -10/Materials | Discovered new exit (range 14) 789 | -10/Materials | Core integrity fell below 50% 912 | -10/Materials | Discovered new exit (range 15) 1236 | -10/Materials | Learned Storage security intel 1310 | -10/Materials | Learned Storage emergency access door positions 1470 | -10/Materials | Identified exit to Subcaves 1542 | -10/Materials | Learned location of 1 exit from Recycling 1674 | -10/Materials | Repaired Lgt. Treads 1702 | -10/Materials | Repaired Lgt. Treads 1734 | -10/Materials | Repaired Lgt. Treads 1994 | -10/Materials | Discovered new exit (range 4) 2955 | -10/Materials | Entered Mines 2956 | -10/Mines | Identified exit to Materials 3093 | -10/Mines | Learned location of Storage (-7) 3110 | -10/Mines | Found a damaged Exp. Sensor Array with a note attached 3120 | -10/Mines | Found Prototype Device 3366 | -10/Mines | Found DCF Scrap (14 items) 3522 | -10/Mines | Assembled infested the area 3527 | -10/Mines | Assisted by a Guerilla fighting off Assembled 3535 | -10/Mines | Entered Materials 3535 | -9/Materials | Evolved 2 slots: Utility x1, Weapon x1 3536 | -9/Materials | Identified exit to Materials 3834 | -9/Materials | Central database locked down 3859 | -9/Materials | Build established: Tank 4009 | -9/Materials | Discovered new exit (range 8) 5397 | -9/Materials | Build established: Mutant 5777 | -9/Materials | Identified Exp. Sensor Array 6020 | -9/Materials | Build established: Tank 6763 | -9/Materials | Repaired Broken Exp. Sensor Array 6853 | -9/Materials | Build established: Scavenger-Gunner 7617 | -9/Materials | Core integrity fell below 50% 7746 | -9/Materials | Identified exit to Mines 7901 | -9/Materials | Build established: Tank 8424 | -9/Materials | Learned Storage stockpile data 8468 | -9/Materials | Loaded intel: 7 trap records 8522 | -9/Materials | Learned location of 2 exits from Materials 8543 | -9/Materials | Learned 2 Storage zone layouts 9459 | -9/Materials | Build established: Mutant 9535 | -9/Materials | First assault squad dispatched 10256 | -9/Materials | Build established: Tank 10548 | -9/Materials | Sterilization system engaged 10548 | -9/Materials | Non-combat units ordered to evacuate 10648 | -9/Materials | Combat units ordered to evacuate 10848 | -9/Materials | Ambient heat levels rising (+10) 10891 | -9/Materials | Entered Mines 10917 | -9/Mines | Learned location of Zion (-6) 10943 | -9/Mines | Learned Materials terminal intel 11452 | -9/Mines | Found the Drone Emporium 11474 | -9/Mines | Found Prototype Device 11474 | -9/Mines | Identified Decoy Drone Bay 11710 | -9/Mines | Assisted by bots powering up and referring to "LRC-V3" 12033 | -9/Mines | Discovered exit to Materials (range 8) 12252 | -9/Mines | Received a Rocket Launcher from a helpful Derelict 12460 | -9/Mines | Deemed a non-threat by the Exiles lab entrance 12464 | -9/Mines | Discovered new exit (range 5) 13110 | -9/Mines | Entered Exiles 13110 | -9/Exiles | Accompanied by 3 allies 13195 | -9/Exiles | Met 8R-AWN 13291 | -9/Exiles | Met EX-HEX 13382 | -9/Exiles | Met EX-BIN 13419 | -9/Exiles | Aligned with FarCom system 13422 | -9/Exiles | Given EX-Vault access code 13428 | -9/Exiles | Build established: Mutant 13496 | -9/Exiles | Opened EX-Vault 13519 | -9/Exiles | Found Gui. Plasma Cannon 13587 | -9/Exiles | Warned to stay clear of 0b10 Research branches 13696 | -9/Exiles | Met EX-DEC 14157 | -9/Exiles | Build established: Hauler-Mutant 14409 | -9/Exiles | Discovered new exit (range 10) 14454 | -9/Exiles | Left Exiles lab with Gui. Plasma Cannon 14454 | -9/Exiles | Entered Mines 14454 | -8/Mines | Accompanied by 3 allies 14911 | -8/Mines | Build established: Hauler-Skirmisher 16488 | -8/Mines | Build established: Hauler-Mutant 16811 | -8/Mines | Discovered exit to Materials (range 8) 17537 | -8/Mines | Discovered exit to Materials (range 8) 17647 | -8/Mines | Entered Materials 17647 | -8/Materials | Accompanied by 1 ally 17647 | -8/Materials | Evolved 2 slots: Propulsion x1, Utility x1 17648 | -8/Materials | Identified exit to Factory 17649 | -8/Materials | Loaded intel: 12 terminal locations 17842 | -8/Materials | Build established: Hauler-Skirmisher 18285 | -8/Materials | Repaired Lgt. Treads 18619 | -8/Materials | Central database locked down 18939 | -8/Materials | Discovered exit to Factory (range 16) 20489 | -8/Materials | Learned 4 Factory zone layouts 20558 | -8/Materials | Learned Storage garrison access intel 20616 | -8/Materials | Learned Factory terminal intel 20699 | -8/Materials | Learned 8 Factory zone layouts 22243 | -8/Materials | Build established: Hauler-Mutant 23092 | -8/Materials | Build established: Hauler-Skirmisher 23247 | -8/Materials | First assault squad dispatched 23603 | -8/Materials | Build established: Hauler-Tank 26059 | -8/Materials | Garrison activated, responded to threat 26076 | -8/Materials | Sterilization system engaged 26076 | -8/Materials | Non-combat units ordered to evacuate 26176 | -8/Materials | Combat units ordered to evacuate 26184 | -8/Materials | Lost 3 parts (2u1w) 26376 | -8/Materials | Ambient heat levels rising (+10) 26487 | -8/Materials | Build established: Mutant 26526 | -8/Materials | Ambient heat levels rising (+10) 26676 | -8/Materials | Ambient heat levels rising (+10) 26719 | -8/Materials | Entered Factory 26719 | -7/Factory | Evolved 2 slots: Propulsion x1, Utility x1 26720 | -7/Factory | Identified exit to Factory 26720 | -7/Factory | Identified exit to Storage 26721 | -7/Factory | Identified exit to Lower Caves 26722 | -7/Factory | Loaded intel: 26 terminal locations 26905 | -7/Factory | Central database locked down 27021 | -7/Factory | Build established: Hacker-Sprinter 27119 | -7/Factory | First assault squad dispatched 27202 | -7/Factory | Garrison activated, responded to threat 27337 | -7/Factory | Learned Extension stockpile data 27410 | -7/Factory | Learned location of 2 exits from Upper Caves 27423 | -7/Factory | Repaired Broken Cld. VTOL Module 27472 | -7/Factory | Learned 2 Lower Caves zone layouts 27480 | -7/Factory | Manually triggered Chute Trap 27480 | -7/Factory | Sucked down chute 27480 | -7/Factory | Entered Waste 27493 | -7/Waste | Spotted C-40 Crusher 27501 | -7/Waste | Spotted C-40 Crusher 27505 | -7/Waste | Spotted C-40 Crusher 27507 | -7/Waste | Spotted C-40 Crusher 27512 | -7/Waste | Spotted C-40 Crusher 27513 | -7/Waste | Spotted C-40 Crusher 27540 | -7/Waste | Warlord forces began an assault 27589 | -7/Waste | Allies destroyed C-40 Crusher 27660 | -7/Waste | Discovered new exit (range 13) 27669 | -7/Waste | Entered Factory 27678 | -7/Factory | Lost 8 allies 27813 | -7/Factory | Build established: Hacker-Mutant 28128 | -7/Factory | Fabricated L-41 Fighter (x3) 28172 | -7/Factory | Fabricated Imp. Linear Gravjet (x2) 28408 | -7/Factory | Central database locked down 28504 | -7/Factory | Learned 4 Lower Caves zone layouts 28504 | -7/Factory | Build established: Hacker-Sprinter 28524 | -7/Factory | Fabricated Imp. Linear Gravjet (x2) 28579 | -7/Factory | Learned location of 2 exits from Upper Caves 28645 | -7/Factory | Learned Hub_04(d) stockpile data 28699 | -7/Factory | Learned 2 Extension zone layouts 28766 | -7/Factory | Repaired Adv. Hacking Suite 28777 | -7/Factory | Learned location of Warlord (-4) 28799 | -7/Factory | Learned 2 Extension zone layouts 28926 | -7/Factory | Learned location of 1 exit from Lower Caves 29381 | -7/Factory | Repaired Cld. Ion Engine 29463 | -7/Factory | Unchained authorized (GL-D0S) 29535 | -7/Factory | Learned location of 1 exit from Lower Caves 29574 | -7/Factory | Learned Extension stockpile data 29621 | -7/Factory | Learned Factory stockpile data 29631 | -7/Factory | Learned 2 Upper Caves zone layouts 29644 | -7/Factory | Learned 4 Upper Caves zone layouts 29664 | -7/Factory | Loaded intel: 6 fabricator locations 29725 | -7/Factory | Fabricated Imp. Linear Gravjet (x2) 30728 | -7/Factory | Build established: Trapper-Assassin 31386 | -7/Factory | Repaired Imp. Linear Gravjet 31836 | -7/Factory | Fabricated Imp. Linear Gravjet (x2) 31942 | -7/Factory | Entered Storage 31946 | -7/Storage | Loaded intel: 1 garrison access location 31978 | -7/Storage | Repaired Imp. Linear Gravjet 32320 | -7/Storage | Entered Factory 32320 | -6/Factory | Evolved 2 slots: Power x1, Propulsion x1 32321 | -6/Factory | Identified exit to Lower Caves 32321 | -6/Factory | Identified exit to Extension 32468 | -6/Factory | Repaired Lance 32539 | -6/Factory | Repaired Imp. Linear Gravjet 32582 | -6/Factory | Destroyed 8 combat bots 32614 | -6/Factory | Fabricated Imp. Linear Gravjet (x2) 32731 | -6/Factory | Discovered new exit (range 15) 32798 | -6/Factory | Found Prototype Launcher 32798 | -6/Factory | Identified Rocket Array 32846 | -6/Factory | Unchained authorized (GL-D0S) 32923 | -6/Factory | Build established: Trapper-Sprinter 33486 | -6/Factory | Cargo convoy interrupted 33518 | -6/Factory | Found Prototype Device 33518 | -6/Factory | Identified Exp. Focal Shield 33565 | -6/Factory | Sucked down chute 33565 | -6/Factory | Entered Waste 33580 | -6/Waste | EMP discharged 33581 | -6/Waste | Spotted C-40 Crusher 33581 | -6/Waste | Spotted C-40 Crusher 33582 | -6/Waste | Spotted C-40 Crusher 33593 | -6/Waste | Spotted C-40 Crusher 33593 | -6/Waste | Spotted C-40 Crusher 33598 | -6/Waste | Spotted C-40 Crusher 33614 | -6/Waste | Discovered new exit (range 11) 33617 | -6/Waste | Entered Factory 33663 | -6/Factory | Found Prototype Launcher 33663 | -6/Factory | Identified Scatter Rocket Array 33685 | -6/Factory | Build established: Hacker-Sprinter 33706 | -6/Factory | Imp. Hacking Suite fried by hacking feedback 33789 | -6/Factory | Discovered new exit (range 12) 33892 | -6/Factory | Spotted B-75 Beast 33942 | -6/Factory | Central database locked down 33978 | -6/Factory | Discovered new exit (range 7) 34110 | -6/Factory | Repaired Broken Imp. Linear Gravjet 34194 | -6/Factory | Fabricated Hacking Suite? 34197 | -6/Factory | Loaded intel: 28 terminal locations 34232 | -6/Factory | Learned Extension security intel 34255 | -6/Factory | Identified exit to Factory 34274 | -6/Factory | Learned location of 2 exits from Archives 34275 | -6/Factory | Learned location of 1 exit from Lower Caves 34276 | -6/Factory | Learned location of 2 exits from Lower Caves 34277 | -6/Factory | Loaded intel: 86 trap records 34278 | -6/Factory | Learned Factory terminal intel 34434 | -6/Factory | Cargo convoy interrupted 34460 | -6/Factory | Destroyed 7 combat bots 34492 | -6/Factory | Lost 4 parts (3n1u) 34638 | -6/Factory | Garrison activated, responded to threat 34667 | -6/Factory | First assault squad dispatched 34711 | -6/Factory | Build established: Mutant 34921 | -6/Factory | Unchained authorized (DW-4LL) 35125 | -6/Factory | DW-4LL burst out of a wall 35126 | -6/Factory | System corruption reached 10% 35214 | -6/Factory | Entered Extension 35215 | -6/Extension | Identified exit to Cetus 35262 | -6/Extension | Rescued a captive Derelict 36145 | -6/Extension | Spotted B-75 Beast 36208 | -6/Extension | Energy Cycler disabled 36209 | -6/Extension | Rescued a captive Derelict 36210 | -6/Extension | Rescued a captive Derelict 36213 | -6/Extension | Rescued A7 36214 | -6/Extension | Rescued a captive Derelict 36214 | -6/Extension | Rescued a captive Derelict 36214 | -6/Extension | Rescued a captive Derelict 36239 | -6/Extension | Lost 5 allies 36380 | -6/Extension | Build established: Scavenger-Mutant 36438 | -6/Extension | Spotted B-75 Beast 36471 | -6/Extension | Allies destroyed B-75 Beast 37239 | -6/Extension | Disrupted transfer network 37704 | -6/Extension | Build established: Commander-Mutant 38139 | -6/Extension | Build established: Scavenger-Tank 38714 | -6/Extension | First assault squad dispatched 39256 | -6/Extension | Destroyed 10 combat bots 39318 | -6/Extension | Found Corrupted Prototype Protection 39318 | -6/Extension | Identified Med. Regenerative Plating 39570 | -6/Extension | High security lockdown imminent 39611 | -6/Extension | Destroyed 19 combat bots 39650 | -6/Extension | High security lockdown engaged 39844 | -6/Extension | Destroyed 12 combat bots 39852 | -6/Extension | Lost 8 allies 39978 | -6/Extension | Destroyed 14 combat bots 40076 | -6/Extension | Sterilization system engaged 40076 | -6/Extension | Non-combat units ordered to evacuate 40101 | -6/Extension | Core integrity fell below 50% 40102 | -6/Extension | Released all parts (6) 40114 | -6/Extension | Destroyed 20 combat bots 40133 | -6/Extension | Lost 8 parts (3n5w) 40176 | -6/Extension | Combat units ordered to evacuate 40376 | -6/Extension | Ambient heat levels rising (+10) 40384 | -6/Extension | Build established: Mutant 40526 | -6/Extension | Ambient heat levels rising (+10) 40676 | -6/Extension | Ambient heat levels rising (+10) 40748 | -6/Extension | Build established: Scavenger-Mutant 40826 | -6/Extension | Ambient heat levels rising (+10) 40976 | -6/Extension | Ambient heat levels rising (+10) 41126 | -6/Extension | Ambient heat levels rising (+10) 41175 | -6/Extension | Build established: Mutant 41276 | -6/Extension | Ambient heat levels rising (+10) 41426 | -6/Extension | Ambient heat levels rising (+10) 41427 | -6/Extension | Entered Cetus 41463 | -6/Cetus | Spotted Cetus Guard 41518 | -6/Cetus | High security lockdown imminent 41522 | -6/Cetus | Spotted Cetus Guard 41523 | -6/Cetus | Spotted Cetus Guard 41525 | -6/Cetus | Destroyed Cetus Guard 41526 | -6/Cetus | Destroyed Cetus Guard 41526 | -6/Cetus | Spotted Cetus Guard 41545 | -6/Cetus | Destroyed Cetus Guard 41565 | -6/Cetus | Destroyed Cetus Guard 41598 | -6/Cetus | High security lockdown engaged 41638 | -6/Cetus | System corruption reached 30% 41662 | -6/Cetus | Released all parts (11) 41669 | -6/Cetus | Core integrity fell below 20% 41671 | -6/Cetus | Destroyed by G-67 Veteran with Plasma Rifle Last Messages --------------- 41662_ Imp. Heat Sink crushed and broken. 41662_ Dropped Gui. EMP Blaster. 41662_ Gui. EMP Blaster crushed and broken. 41662_ Acquired Exp. Sensor Array. 41663_ C-45 Heavy ARC bursts open, deploying its payload. 41663_ G-67 Veteran unfolds itself. 41663_ I-36 Angel unfolds itself. 41664_ Acquired Med. Regenerative Plating. 41665_ Slammed into G-67 Veteran. 41667_ Lab Station destroyed. 41667_ Critical hit (Burn: +37). 41667_ Doors destroyed. 41668_ Slammed into G-50 Soldier. 41670_ C-45 Heavy ARC bursts open, deploying its payload. 41670_ G-67 Veteran unfolds itself. 41670_ G-50 Soldier unfolds itself. 41670_ L-41 Fighter unfolds itself. 41670_ B-48 Gladiator unfolds itself. 41670_ M-28 Smith unfolds itself. 41671_ Critical hit (Burn: +50). Map ----- +----------------------------------------------------+ | ?????# #???????????????????????????????????????? | | ?????# #???????????????????????????????????????? | | ?????# #???????????????????????????????????????? | | ?????# #???????????????????????????????????????? | | ?????# #???????????????????????????????????????? | | ?????# #???????????????????????????????????????? | | ?????# #???????????????????????????????????????? | | ?????# #???????????????????????????????????????? | | ?????# #???????????????????????????????????????? | | ?????# #???????????????????????????????????????? | | ?????# !#???????????????????????????????????????? | | ????##= !#???????????????????????????????????????? | | ???##"= ###?????????????????????????????????????? | | ???# # ! !=#?????????????????????????????????????? | | ???###[ ! ##?????????#?#########?##??????????????? | | ??## #* ##?????????#""""" """ """"??????????????? | | ?## #* #??????????# " """"""" "??????????????? | | ## ###[ #??????????#"""""""""""""""?????????????? | | # ##?#% !#??????????#""""" """ """""#????""??????? | | ##??# ! ##?????????#""""""" """""""#?? ""??????? | | ##???# #?????????#""" " " """#? ""#?????? | | #????# ##???#####?#" """ """ "#" ""#?????? | | ###### ###### ### #####?? | | = / gbl / ?? | | ! %[ % / mg / ? | | = / @ / ? | | ############### ###" l g #?????? | | ??????????????#####?#" ""i """"""""#T #?????? | | ????????????????????######gg##########???????????? | | ????????????????????#" " g%!!""#????????????????? | | ????????????????????###" b]g"""#????????????????? | | ????????????????????#" !gm[ #????????????????? | | ????????????????????###" *="""#????????????????? | | ????????????????????#" *"###????????????????? | | ????????????????????#" """"?????????????????? | | ????????????????????#" T"""#????????????????? | | ????????????????????#" """"#????????????????? | | ????????????????????### "###????????????????? | | ????????????????????? """??????????????????? | | ????????????????????#" " T""??????????????????? | | ????????????????????# ""???????????????????? | | ????????????????????#" " " #????????????????????? | | ????????????????????# #????????????????????? | | ????????????????????#""" """#????????????????????? | | ????????????????????#########????????????????????? | | ?????????????????????????????????????????????????? | | ?????????????????????????????????????????????????? | | ?????????????????????????????????????????????????? | | ?????????????????????????????????????????????????? | | ?????????????????????????????????????????????????? | +----------------------------------------------------+ Best States ------------- Heat Dissipation 110 Energy Generation 33 Energy Capacity 560 Matter Stores 300 Matter Capacity 300 Sight Range 22 Robot Scan Range 20 Terrain Scan Density 10 Jamming Range 12 Power Amplification 20 Base Temperature (-) 100 Armor Coverage 600 Resistance: KI 30 Core Shielding 20 Evasion (%) 65 Core Analysis 6 Recoil Reduction 3 Matter Filtering 30 Offensive Hacking 40 Defensive Hacking 10 Authchip Count 1 Trap Extractor Capacity 6 Item Schematics ----------------- Exp. Sensor Array | -9/Materials | Scanalyzed Cld. VTOL Module | -8/Materials | Scanalyzed Lyr. Light Armor Plating | -8/Materials | Scanalyzed Hacking Suite | -8/Materials | Scanalyzed Trap Extractor | -8/Materials | Scanalyzed Cld. Ion Engine | -8/Materials | Scanalyzed Hvy. Rocket Launcher | -8/Materials | Scanalyzed Cryofiber Web | -7/Factory | Scanalyzed Antigrav System | -7/Factory | Hacked Imp. Linear Gravjet | -7/Factory | Scanalyzed Lrn. Proton Cannon | -7/Factory | Hacked Triangulator | -7/Factory | Hacked Matter Filter | -7/Factory | Scanalyzed Lrn. Missile Launcher | -6/Factory | Scanalyzed Enh. Force Lance | -6/Factory | Scanalyzed Launcher Loader | -6/Extension | Hacked Robot Schematics ------------------ Y-54 Guardian | -7/Factory | Hacked Fabricated ------------ L-41 Fighter | x3 | -7/Factory | Preloaded Imp. Linear Gravjet | x2 | -7/Factory | Authchip Imp. Linear Gravjet | x2 | -7/Factory | Authchip Imp. Linear Gravjet | x2 | -7/Factory | Authchip Imp. Linear Gravjet | x2 | -7/Factory Imp. Linear Gravjet | x2 | -6/Factory | Authchip Hacking Suite | x1 | -6/Factory Repaired ---------- Lgt. Treads | 63% | -10/Materials Lgt. Treads | 62% | -10/Materials Lgt. Treads | 79% | -10/Materials Exp. Sensor Array | 62% | -9/Materials | Broken Lgt. Treads | 10% | -8/Materials Cld. VTOL Module | 30% | -7/Factory | Broken Adv. Hacking Suite | 10% | -7/Factory Cld. Ion Engine | 53% | -7/Factory Imp. Linear Gravjet | 11% | -7/Factory Imp. Linear Gravjet | 20% | -7/Storage Lance | 16% | -6/Factory Imp. Linear Gravjet | 10% | -6/Factory Imp. Linear Gravjet | 3% | -6/Factory | Broken Studied --------- Xenon Bombardment Thruster | -7/Factory | Hacked Lgt. Fission Core | -6/Factory | Hacked Lrn. Missile Launcher | -6/Factory | Hacked Gravmag System | -6/Factory | Hacked Alien Tech Used ----------------- None Achievements -------------- Hack The Planet Insider Info Professional Mechanic Sixth Sense Challenges ------------ None Game ------ Seed SalvageAlloySlayer Manual? 0 Play Time 06:23:11 Cumulative 578.0 hours Start 2026.01.29 @ 18:20:02 End 2026.02.09 @ 18:48:21 Sessions 16 Manual Loads 0 Difficulty Rogue Special Mode None Game No. 231 Rogue 231 Adventurer 0 Explorer 0 Win Type - Total 22 Types 10/2/7/1/0/0/0/1/0/1 Lore% 91 Gallery% 86 Achievement% 62 Wizard Run 0 Options --------- Layout 0 ASCII 0 Keyboard 1 Movement Numpad Keybinds 0 Fullscreen 2 Font 18/SmallcapsGlow Map View 76x50 Zoom Use 0% Tactical HUD 1 Map Filters NONE Filters NONE Steam 1 RUN: f4fb7806-d891-47ab-8d47-8d7b71df2add